[Event "Titled Tuesday Blitz June 20 Late 2023"]
[White "Rian, Kapriaga"]
[Black "Keleberda, Tymur"]
[WhiteFideId "7103263"]
[BlackFideId "14174294"]
[WhiteElo "2349"]
[BlackElo "2198"]
[Result "0-1"]
[Round "2"]
[TimeControl "180+2"]
[Date "2023.06.20"]
[WhiteClock "0:00:00"]
[BlackClock "0:00:09"]
[Board "133"]

1. e3 {[%clk 0:02:56]}  c5 {[%clk 0:02:55]} 2. d4 {[%clk 0:02:52]}  Nf6 {[%clk 0:02:54]} 3. c3 {[%clk 0:02:42]}  e6 {[%clk 0:02:53]} 4. Nf3 {[%clk 0:02:41]}  b6 {[%clk 0:02:53]} 5. Nbd2 {[%clk 0:02:40]}  Bb7 {[%clk 0:02:52]} 6. Bd3 {[%clk 0:02:40]}  Be7 {[%clk 0:02:46]} 7. a4 {[%clk 0:02:40]}  Nc6 {[%clk 0:02:43]} 8. O-O {[%clk 0:02:38]}  O-O {[%clk 0:02:42]} 9. Re1 {[%clk 0:02:36]}  d5 {[%clk 0:02:41]} 10. Ne5 {[%clk 0:02:10]}  Bd6 {[%clk 0:02:22]} 11. f4 {[%clk 0:02:09]}  Ne7 {[%clk 0:02:21]} 12. Qf3 {[%clk 0:02:06]}  a6 {[%clk 0:02:13]} 13. Qh3 {[%clk 0:02:05]}  Ne4 {[%clk 0:02:13]} 14. Nxe4 {[%clk 0:01:50]}  dxe4 {[%clk 0:02:14]} 15. Bf1 {[%clk 0:01:49]}  Bd5 {[%clk 0:01:58]} 16. Nc4 {[%clk 0:01:42]}  Bc7 {[%clk 0:01:57]} 17. Nd2 {[%clk 0:01:33]}  Bb7 {[%clk 0:01:49]} 18. b3 {[%clk 0:01:32]}  Qd7 {[%clk 0:01:44]} 19. Ba3 {[%clk 0:01:28]}  Rfc8 {[%clk 0:01:42]} 20. Rec1 {[%clk 0:01:24]}  Bc6 {[%clk 0:01:22]} 21. Ra2 {[%clk 0:01:20]}  Bd6 {[%clk 0:01:19]} 22. Nc4 {[%clk 0:01:18]}  Rab8 {[%clk 0:01:18]} 23. Nxd6 {[%clk 0:01:16]}  Qxd6 {[%clk 0:01:19]} 24. Rd2 {[%clk 0:01:13]}  Qc7 {[%clk 0:01:02]} 25. Bxa6 {[%clk 0:01:11]}  Bb7 {[%clk 0:01:02]} 26. Bf1 {[%clk 0:01:09]}  cxd4 {[%clk 0:01:01]} 27. cxd4 {[%clk 0:01:06]}  Qd7 {[%clk 0:01:01]} 28. Rdc2 {[%clk 0:01:04]}  Rxc2 {[%clk 0:00:58]} 29. Rxc2 {[%clk 0:01:04]}  Rc8 {[%clk 0:00:56]} 30. Bc4 {[%clk 0:01:03]}  Nd5 {[%clk 0:00:54]} 31. Qg3 {[%clk 0:01:00]}  h6 {[%clk 0:00:52]} 32. Qf2 {[%clk 0:00:59]}  Qd8 {[%clk 0:00:44]} 33. h3 {[%clk 0:00:57]}  h5 {[%clk 0:00:43]} 34. Kh2 {[%clk 0:00:55]}  g6 {[%clk 0:00:42]} 35. Kg1 {[%clk 0:00:35]}  Kg7 {[%clk 0:00:42]} 36. Kh2 {[%clk 0:00:31]}  Kg8 {[%clk 0:00:38]} 37. b4 {[%clk 0:00:31]}  Rc7 {[%clk 0:00:35]} 38. Bxd5 {[%clk 0:00:26]}  Bxd5 {[%clk 0:00:34]} 39. a5 {[%clk 0:00:15]}  Rxc2 {[%clk 0:00:32]} 40. Qxc2 {[%clk 0:00:15]}  bxa5 {[%clk 0:00:32]} 41. bxa5 {[%clk 0:00:15]}  Qxa5 {[%clk 0:00:32]} 42. Qc8+ {[%clk 0:00:16]}  Kh7 {[%clk 0:00:31]} 43. Be7 {[%clk 0:00:15]}  Qa8 {[%clk 0:00:25]} 44. Qc7 {[%clk 0:00:11]}  Qh8 {[%clk 0:00:22]} 45. Bg5 {[%clk 0:00:08]}  Qg7 {[%clk 0:00:22]} 46. Be7 {[%clk 0:00:08]}  f6 {[%clk 0:00:20]} 47. Qd8 {[%clk 0:00:07]}  Qg8 {[%clk 0:00:17]} 48. Qd7 {[%clk 0:00:06]}  Qf7 {[%clk 0:00:17]} 49. Qd8 {[%clk 0:00:05]}  Qg8 {[%clk 0:00:11]} 50. Qd6 {[%clk 0:00:03]}  Qf7 {[%clk 0:00:10]} 51. g4 {[%clk 0:00:03]}  g5 {[%clk 0:00:09]} 52. f5 {[%clk 0:00:00]}  hxg4 {[%clk 0:00:09]} 0-1


[Site "https://www.chess.com"]

[Event "Titled Tuesday Blitz June 20 Late 2023"]
[White "Martin Carmona, Gaston Manuel"]
[Black "Della Corte, Alessandro"]
[WhiteFideId "22284567"]
[BlackFideId "813540"]
[WhiteElo "2245"]
[BlackElo "2205"]
[Result "0-1"]
[Round "2"]
[TimeControl "180+2"]
[Date "2023.06.20"]
[WhiteClock "0:00:02"]
[BlackClock "0:01:10"]
[Board "134"]

1. Nf3 {[%clk 0:03:00]}  d5 {[%clk 0:03:00]} 2. c4 {[%clk 0:02:59]}  e6 {[%clk 0:03:00]} 3. d4 {[%clk 0:02:59]}  Nf6 {[%clk 0:02:59]} 4. g3 {[%clk 0:02:59]}  Be7 {[%clk 0:02:59]} 5. Bg2 {[%clk 0:02:59]}  O-O {[%clk 0:03:00]} 6. O-O {[%clk 0:03:00]}  Nbd7 {[%clk 0:03:00]} 7. Qc2 {[%clk 0:02:59]}  c6 {[%clk 0:03:00]} 8. Nbd2 {[%clk 0:03:00]}  b6 {[%clk 0:02:59]} 9. e4 {[%clk 0:03:00]}  Bb7 {[%clk 0:02:59]} 10. e5 {[%clk 0:03:00]}  Ne8 {[%clk 0:03:00]} 11. cxd5 {[%clk 0:03:01]}  cxd5 {[%clk 0:03:00]} 12. Re1 {[%clk 0:03:01]}  Rc8 {[%clk 0:02:59]} 13. Qd1 {[%clk 0:02:52]}  Ba6 {[%clk 0:02:59]} 14. Nb1 {[%clk 0:02:52]}  Nb8 {[%clk 0:02:58]} 15. Nc3 {[%clk 0:02:52]}  Nc6 {[%clk 0:02:57]} 16. Qa4 {[%clk 0:02:44]}  Na5 {[%clk 0:02:47]} 17. Bd2 {[%clk 0:02:35]}  Nc7 {[%clk 0:02:30]} 18. h4 {[%clk 0:02:31]}  Nc4 {[%clk 0:02:30]} 19. Bc1 {[%clk 0:02:31]}  Qe8 {[%clk 0:02:27]} 20. Qd1 {[%clk 0:02:30]}  Nb5 {[%clk 0:02:26]} 21. Bg5 {[%clk 0:02:21]}  Nxc3 {[%clk 0:02:26]} 22. bxc3 {[%clk 0:02:22]}  h6 {[%clk 0:02:22]} 23. Bxe7 {[%clk 0:02:21]}  Qxe7 {[%clk 0:02:23]} 24. Bf1 {[%clk 0:02:20]}  Nb2 {[%clk 0:02:15]} 25. Qb3 {[%clk 0:02:18]}  Bxf1 {[%clk 0:02:15]} 26. Rxf1 {[%clk 0:02:19]}  Nc4 {[%clk 0:02:14]} 27. a4 {[%clk 0:02:16]}  a5 {[%clk 0:02:14]} 28. Kg2 {[%clk 0:02:04]}  Rc6 {[%clk 0:02:13]} 29. Rfb1 {[%clk 0:01:58]}  Rfc8 {[%clk 0:02:13]} 30. Qd1 {[%clk 0:01:55]}  Na3 {[%clk 0:02:01]} 31. Rb3 {[%clk 0:01:54]}  Rxc3 {[%clk 0:01:59]} 32. Raxa3 {[%clk 0:01:46]}  Qxa3 {[%clk 0:01:52]} 33. Rxa3 {[%clk 0:01:47]}  Rxa3 {[%clk 0:01:52]} 34. Ne1 {[%clk 0:01:32]}  Rc4 {[%clk 0:01:50]} 35. Nc2 {[%clk 0:01:17]}  Raxa4 {[%clk 0:01:50]} 36. g4 {[%clk 0:01:15]}  b5 {[%clk 0:01:47]} 37. g5 {[%clk 0:01:16]}  hxg5 {[%clk 0:01:47]} 38. hxg5 {[%clk 0:01:16]}  g6 {[%clk 0:01:48]} 39. Ne3 {[%clk 0:01:15]}  Rxd4 {[%clk 0:01:47]} 40. Qc2 {[%clk 0:01:16]}  Rdc4 {[%clk 0:01:33]} 41. Nxc4 {[%clk 0:01:13]}  dxc4 {[%clk 0:01:34]} 42. Kf3 {[%clk 0:00:51]}  Rb4 {[%clk 0:01:34]} 43. Ke4 {[%clk 0:00:48]}  c3+ {[%clk 0:01:26]} 44. Kd3 {[%clk 0:00:48]}  Rc4 {[%clk 0:01:27]} 45. f3 {[%clk 0:00:21]}  a4 {[%clk 0:01:27]} 46. Ke2 {[%clk 0:00:10]}  b4 {[%clk 0:01:13]} 47. Kd1 {[%clk 0:00:04]}  b3 {[%clk 0:01:11]} 48. Qd3 {[%clk 0:00:04]}  c2+ {[%clk 0:01:12]} 49. Kc1 {[%clk 0:00:02]}  b2+ {[%clk 0:01:10]} 0-1


[Site "https://www.chess.com"]

[Event "Titled Tuesday Blitz June 20 Late 2023"]
[White "Berezin, Viktor"]
[Black "Avalos Parra, Joao"]
[WhiteFideId "14107872"]
[BlackFideId "3402541"]
[WhiteElo "2310"]
[BlackElo "2173"]
[Result "0-1"]
[Round "2"]
[TimeControl "180+2"]
[Date "2023.06.20"]
[WhiteClock "0:00:11"]
[BlackClock "0:00:24"]
[Board "139"]

1. d4 {[%clk 0:03:00]}  d5 {[%clk 0:02:59]} 2. c4 {[%clk 0:02:57]}  e6 {[%clk 0:02:59]} 3. Nf3 {[%clk 0:02:56]}  Nf6 {[%clk 0:02:59]} 4. g3 {[%clk 0:02:56]}  Bb4+ {[%clk 0:02:58]} 5. Nbd2 {[%clk 0:02:55]}  dxc4 {[%clk 0:02:56]} 6. Qc2 {[%clk 0:02:54]}  b5 {[%clk 0:02:54]} 7. Bg2 {[%clk 0:02:53]}  Bb7 {[%clk 0:02:54]} 8. O-O {[%clk 0:02:45]}  O-O {[%clk 0:02:54]} 9. e3 {[%clk 0:02:32]}  Nbd7 {[%clk 0:02:50]} 10. Rd1 {[%clk 0:02:25]}  Qc8 {[%clk 0:02:48]} 11. e4 {[%clk 0:02:20]}  c5 {[%clk 0:02:46]} 12. e5 {[%clk 0:02:16]}  Nd5 {[%clk 0:02:31]} 13. a3 {[%clk 0:02:05]}  Bxd2 {[%clk 0:02:29]} 14. Rxd2 {[%clk 0:01:58]}  cxd4 {[%clk 0:02:27]} 15. Rxd4 {[%clk 0:01:59]}  h6 {[%clk 0:02:22]} 16. Bxh6 {[%clk 0:01:47]}  Ne7 {[%clk 0:01:10]} 17. Qd2 {[%clk 0:01:06]}  Bxf3 {[%clk 0:01:02]} 18. Qg5 {[%clk 0:00:53]}  Ng6 {[%clk 0:00:55]} 19. Bxf3 {[%clk 0:00:47]}  gxh6 {[%clk 0:00:54]} 20. Qxh6 {[%clk 0:00:44]}  Ndxe5 {[%clk 0:00:52]} 21. Bg2 {[%clk 0:00:38]}  Rd8 {[%clk 0:00:52]} 22. Rad1 {[%clk 0:00:35]}  Rxd4 {[%clk 0:00:47]} 23. Rxd4 {[%clk 0:00:36]}  Qc5 {[%clk 0:00:47]} 24. Rd2 {[%clk 0:00:23]}  Qf8 {[%clk 0:00:45]} 25. Qg5 {[%clk 0:00:21]}  Rb8 {[%clk 0:00:37]} 26. h4 {[%clk 0:00:21]}  Qe7 {[%clk 0:00:36]} 27. Qh6 {[%clk 0:00:21]}  Rd8 {[%clk 0:00:33]} 28. h5 {[%clk 0:00:20]}  Rxd2 {[%clk 0:00:31]} 29. Qxd2 {[%clk 0:00:21]}  Nf8 {[%clk 0:00:30]} 30. Be4 {[%clk 0:00:22]}  f5 {[%clk 0:00:29]} 31. Bg2 {[%clk 0:00:20]}  Qf7 {[%clk 0:00:28]} 32. h6 {[%clk 0:00:20]}  Qh5 {[%clk 0:00:26]} 33. Qf4 {[%clk 0:00:14]}  Nfg6 {[%clk 0:00:24]} 34. Qd4 {[%clk 0:00:13]}  Qxh6 {[%clk 0:00:24]} 35. Qxa7 {[%clk 0:00:13]}  Qc1+ {[%clk 0:00:23]} 36. Kh2 {[%clk 0:00:13]}  Ng4+ {[%clk 0:00:23]} 37. Kh3 {[%clk 0:00:11]}  Qh6# {[%clk 0:00:24]} 0-1


[Site "https://www.chess.com"]

[Event "Titled Tuesday Blitz June 20 Late 2023"]
[White "Karamsetty, Jeevan"]
[Black "Lach, Aleksandra"]
[WhiteFideId "2025337"]
[BlackFideId "1134299"]
[WhiteElo "2131"]
[BlackElo "2111"]
[Result "1-0"]
[Round "2"]
[TimeControl "180+2"]
[Date "2023.06.20"]
[WhiteClock "0:01:42"]
[BlackClock "0:00:08"]
[Board "140"]

1. e4 {[%clk 0:03:00]}  e5 {[%clk 0:02:57]} 2. Nf3 {[%clk 0:03:00]}  Nc6 {[%clk 0:02:57]} 3. Bc4 {[%clk 0:03:00]}  Bc5 {[%clk 0:02:55]} 4. c3 {[%clk 0:02:58]}  Nf6 {[%clk 0:02:55]} 5. d4 {[%clk 0:02:58]}  exd4 {[%clk 0:02:54]} 6. e5 {[%clk 0:02:59]}  Qe7 {[%clk 0:02:25]} 7. O-O {[%clk 0:02:51]}  Ng8 {[%clk 0:01:21]} 8. cxd4 {[%clk 0:02:51]}  Bb4 {[%clk 0:01:21]} 9. a3 {[%clk 0:02:48]}  Ba5 {[%clk 0:01:22]} 10. d5 {[%clk 0:02:45]}  Nxe5 {[%clk 0:01:09]} 11. Nxe5 {[%clk 0:02:43]}  Qxe5 {[%clk 0:01:08]} 12. b4 {[%clk 0:02:23]}  Qxa1 {[%clk 0:01:04]} 13. Qe2+ {[%clk 0:02:23]}  Ne7 {[%clk 0:01:00]} 14. Bb2 {[%clk 0:02:23]}  Qxb2 {[%clk 0:00:49]} 15. Qxb2 {[%clk 0:02:22]}  O-O {[%clk 0:00:49]} 16. bxa5 {[%clk 0:02:21]}  d6 {[%clk 0:00:50]} 17. Nd2 {[%clk 0:02:20]}  Ng6 {[%clk 0:00:50]} 18. Nf3 {[%clk 0:02:20]}  Bg4 {[%clk 0:00:49]} 19. Qxb7 {[%clk 0:02:19]}  Bxf3 {[%clk 0:00:48]} 20. gxf3 {[%clk 0:02:20]}  Ne5 {[%clk 0:00:48]} 21. Be2 {[%clk 0:02:20]}  Rfe8 {[%clk 0:00:39]} 22. Rc1 {[%clk 0:02:16]}  Ng6 {[%clk 0:00:32]} 23. Bf1 {[%clk 0:02:13]}  Nf4 {[%clk 0:00:27]} 24. Rxc7 {[%clk 0:02:12]}  Rab8 {[%clk 0:00:28]} 25. Qxa7 {[%clk 0:02:12]}  Rb1 {[%clk 0:00:27]} 26. Re7 {[%clk 0:02:03]}  Rc8 {[%clk 0:00:25]} 27. Qd7 {[%clk 0:01:45]}  Rf8 {[%clk 0:00:12]} 28. Re8 {[%clk 0:01:43]}  Ne2+ {[%clk 0:00:08]} 29. Rxe2 {[%clk 0:01:42]} 1-0


[Site "https://www.chess.com"]

[Event "Titled Tuesday Blitz June 20 Late 2023"]
[White "Rosenberg, Evan S"]
[Black "The_Sherman_Variation"]
[WhiteFideId "2019299"]
[WhiteElo "2329"]
[BlackElo "2506"]
[Result "0-1"]
[Round "2"]
[TimeControl "180+2"]
[Date "2023.06.20"]
[WhiteClock "0:00:00"]
[BlackClock "0:00:42"]
[Board "144"]

1. d4 {[%clk 0:03:00]}  b5 {[%clk 0:02:59]} 2. e4 {[%clk 0:02:59]}  a6 {[%clk 0:02:59]} 3. Nf3 {[%clk 0:02:57]}  Bb7 {[%clk 0:02:59]} 4. Bd3 {[%clk 0:02:57]}  e6 {[%clk 0:03:00]} 5. O-O {[%clk 0:02:57]}  c5 {[%clk 0:03:00]} 6. c3 {[%clk 0:02:56]}  Nf6 {[%clk 0:02:59]} 7. Re1 {[%clk 0:02:55]}  Be7 {[%clk 0:02:58]} 8. Bf4 {[%clk 0:02:54]}  O-O {[%clk 0:02:57]} 9. h3 {[%clk 0:02:54]}  h6 {[%clk 0:02:57]} 10. Nbd2 {[%clk 0:02:54]}  d5 {[%clk 0:02:54]} 11. e5 {[%clk 0:02:53]}  Nfd7 {[%clk 0:02:50]} 12. Rc1 {[%clk 0:02:53]}  Re8 {[%clk 0:02:46]} 13. Bb1 {[%clk 0:02:53]}  Nc6 {[%clk 0:02:45]} 14. Nf1 {[%clk 0:02:35]}  Rc8 {[%clk 0:02:41]} 15. N3h2 {[%clk 0:02:34]}  cxd4 {[%clk 0:02:40]} 16. cxd4 {[%clk 0:02:34]}  Qb6 {[%clk 0:02:35]} 17. Be3 {[%clk 0:02:29]}  Bb4 {[%clk 0:02:31]} 18. Re2 {[%clk 0:02:29]}  Ne7 {[%clk 0:02:31]} 19. Rec2 {[%clk 0:02:26]}  Rxc2 {[%clk 0:02:28]} 20. Qxc2 {[%clk 0:02:24]}  Nf8 {[%clk 0:02:29]} 21. a3 {[%clk 0:02:24]}  Rc8 {[%clk 0:02:28]} 22. Qd1 {[%clk 0:02:11]}  Rxc1 {[%clk 0:02:23]} 23. Qxc1 {[%clk 0:02:12]}  Ba5 {[%clk 0:02:18]} 24. b4 {[%clk 0:02:10]}  Qc7 {[%clk 0:02:15]} 25. bxa5 {[%clk 0:02:09]}  Qxa5 {[%clk 0:02:16]} 26. Bd2 {[%clk 0:02:05]}  Qa4 {[%clk 0:02:13]} 27. Bb4 {[%clk 0:02:04]}  Nc6 {[%clk 0:02:05]} 28. Bc2 {[%clk 0:02:00]}  Nxd4 {[%clk 0:02:06]} 29. Bxa4 {[%clk 0:01:48]}  Ne2+ {[%clk 0:02:05]} 30. Kh1 {[%clk 0:01:49]}  Nxc1 {[%clk 0:02:06]} 31. Bc2 {[%clk 0:01:41]}  Nd7 {[%clk 0:02:03]} 32. f4 {[%clk 0:01:37]}  Ne2 {[%clk 0:01:58]} 33. Bd2 {[%clk 0:01:20]}  Nd4 {[%clk 0:01:56]} 34. Bd3 {[%clk 0:01:14]}  Nc5 {[%clk 0:01:55]} 35. Bb1 {[%clk 0:01:14]}  Ncb3 {[%clk 0:01:49]} 36. Be3 {[%clk 0:01:13]}  a5 {[%clk 0:01:49]} 37. Nd2 {[%clk 0:01:10]}  b4 {[%clk 0:01:44]} 38. Nxb3 {[%clk 0:01:07]}  Nxb3 {[%clk 0:01:44]} 39. axb4 {[%clk 0:01:08]}  axb4 {[%clk 0:01:44]} 40. Nf3 {[%clk 0:01:05]}  Ba6 {[%clk 0:01:37]} 41. Nd4 {[%clk 0:00:56]}  Nc5 {[%clk 0:01:22]} 42. Bc2 {[%clk 0:00:56]}  Bc4 {[%clk 0:01:17]} 43. Bb1 {[%clk 0:00:36]}  b3 {[%clk 0:01:15]} 44. f5 {[%clk 0:00:23]}  b2 {[%clk 0:01:10]} 45. fxe6 {[%clk 0:00:17]}  fxe6 {[%clk 0:01:10]} 46. Nc2 {[%clk 0:00:08]}  Ne4 {[%clk 0:01:04]} 47. Na3 {[%clk 0:00:06]}  Nc3 {[%clk 0:00:59]} 48. Bd4 {[%clk 0:00:06]}  Nxb1 {[%clk 0:00:57]} 49. Nxb1 {[%clk 0:00:06]}  Bd3 {[%clk 0:00:57]} 50. Na3 {[%clk 0:00:04]}  b1=Q+ {[%clk 0:00:56]} 51. Nxb1 {[%clk 0:00:04]}  Bxb1 {[%clk 0:00:56]} 52. g4 {[%clk 0:00:04]}  Kf7 {[%clk 0:00:56]} 53. Kg2 {[%clk 0:00:04]}  Kg6 {[%clk 0:00:56]} 54. Kg3 {[%clk 0:00:05]}  h5 {[%clk 0:00:56]} 55. h4 {[%clk 0:00:03]}  Bc2 {[%clk 0:00:51]} 56. Bc3 {[%clk 0:00:03]}  Bd1 {[%clk 0:00:51]} 57. gxh5+ {[%clk 0:00:03]}  Kf5 {[%clk 0:00:48]} 58. Bd4 {[%clk 0:00:02]}  Bxh5 {[%clk 0:00:49]} 59. Bc3 {[%clk 0:00:01]}  Ke4 {[%clk 0:00:49]} 60. Bb2 {[%clk 0:00:01]}  d4 {[%clk 0:00:46]} 61. Ba3 {[%clk 0:00:01]}  Ke3 {[%clk 0:00:44]} 62. Bf8 {[%clk 0:00:00]}  g6 {[%clk 0:00:42]} 0-1


[Site "https://www.chess.com"]

[Event "Titled Tuesday Blitz June 20 Late 2023"]
[White "Todev, Simeon"]
[Black "Shuvalov, Evgenij"]
[WhiteFideId "2925133"]
[BlackFideId "4187237"]
[WhiteElo "1938"]
[BlackElo "2080"]
[Result "1-0"]
[Round "2"]
[TimeControl "180+2"]
[Date "2023.06.20"]
[WhiteClock "0:00:18"]
[BlackClock "0:00:17"]
[Board "149"]

1. e4 {[%clk 0:03:00]}  e6 {[%clk 0:02:57]} 2. Nf3 {[%clk 0:03:00]}  d5 {[%clk 0:02:57]} 3. Nc3 {[%clk 0:02:59]}  Nf6 {[%clk 0:02:57]} 4. exd5 {[%clk 0:02:56]}  exd5 {[%clk 0:02:56]} 5. d4 {[%clk 0:02:57]}  Be7 {[%clk 0:02:54]} 6. Bg5 {[%clk 0:02:57]}  O-O {[%clk 0:02:54]} 7. Bd3 {[%clk 0:02:58]}  Bg4 {[%clk 0:02:54]} 8. O-O {[%clk 0:02:58]}  Nc6 {[%clk 0:02:54]} 9. Be2 {[%clk 0:02:54]}  Ne4 {[%clk 0:02:50]} 10. Bxe7 {[%clk 0:02:52]}  Nxe7 {[%clk 0:02:50]} 11. Nxe4 {[%clk 0:02:50]}  dxe4 {[%clk 0:02:51]} 12. Ne5 {[%clk 0:02:51]}  Bxe2 {[%clk 0:02:50]} 13. Qxe2 {[%clk 0:02:51]}  Qxd4 {[%clk 0:02:48]} 14. Nc4 {[%clk 0:02:49]}  f5 {[%clk 0:02:20]} 15. Rad1 {[%clk 0:02:45]}  Qc5 {[%clk 0:02:16]} 16. Rd7 {[%clk 0:02:38]}  Ng6 {[%clk 0:02:08]} 17. b4 {[%clk 0:02:31]}  Qxb4 {[%clk 0:01:57]} 18. Rxc7 {[%clk 0:02:31]}  Rac8 {[%clk 0:01:55]} 19. Rxc8 {[%clk 0:02:31]}  Rxc8 {[%clk 0:01:56]} 20. Ne3 {[%clk 0:02:31]}  Qc5 {[%clk 0:01:46]} 21. Rd1 {[%clk 0:02:29]}  Nf4 {[%clk 0:01:44]} 22. Qd2 {[%clk 0:02:15]}  g6 {[%clk 0:01:40]} 23. Qd7 {[%clk 0:02:07]}  Qc7 {[%clk 0:01:37]} 24. Qb5 {[%clk 0:01:55]}  Qc6 {[%clk 0:01:24]} 25. Qb3+ {[%clk 0:01:51]}  Kg7 {[%clk 0:01:20]} 26. g3 {[%clk 0:01:47]}  Ne2+ {[%clk 0:01:18]} 27. Kg2 {[%clk 0:01:46]}  Nc3 {[%clk 0:01:19]} 28. Rd4 {[%clk 0:01:41]}  b5 {[%clk 0:01:10]} 29. Qa3 {[%clk 0:01:24]}  Rc7 {[%clk 0:01:04]} 30. Rd8 {[%clk 0:01:19]}  Rf7 {[%clk 0:01:01]} 31. Rd6 {[%clk 0:01:12]}  Qc7 {[%clk 0:00:58]} 32. Qb4 {[%clk 0:01:05]}  Kh6 {[%clk 0:00:44]} 33. Qd4 {[%clk 0:00:46]}  a5 {[%clk 0:00:41]} 34. Rf6 {[%clk 0:00:43]}  b4 {[%clk 0:00:31]} 35. Nxf5+ {[%clk 0:00:42]}  Kg5 {[%clk 0:00:28]} 36. h4+ {[%clk 0:00:27]}  Kh5 {[%clk 0:00:26]} 37. g4+ {[%clk 0:00:24]}  Kxg4 {[%clk 0:00:23]} 38. Rxf7 {[%clk 0:00:20]}  Qf4 {[%clk 0:00:21]} 39. Ne3+ {[%clk 0:00:18]}  Qxe3 {[%clk 0:00:19]} 40. Qxe3 {[%clk 0:00:19]}  Kxh4 {[%clk 0:00:17]} 41. Qg3+ {[%clk 0:00:17]}  Kh5 {[%clk 0:00:17]} 42. Rxh7# {[%clk 0:00:18]} 1-0


[Site "https://www.chess.com"]

[Event "Titled Tuesday Blitz June 20 Late 2023"]
[White "Tifferet, Shaked"]
[Black "Gerbelli Neto, Eduardo"]
[WhiteFideId "2811529"]
[BlackFideId "2103281"]
[WhiteElo "2142"]
[BlackElo "2178"]
[Result "1-0"]
[Round "2"]
[TimeControl "180+2"]
[Date "2023.06.20"]
[WhiteClock "0:01:01"]
[BlackClock "0:00:14"]
[Board "152"]

1. c3 {[%clk 0:03:00]}  e5 {[%clk 0:02:59]} 2. h3 {[%clk 0:03:00]}  Nf6 {[%clk 0:02:57]} 3. d4 {[%clk 0:03:00]}  exd4 {[%clk 0:02:57]} 4. cxd4 {[%clk 0:03:00]}  d5 {[%clk 0:02:56]} 5. Nc3 {[%clk 0:03:00]}  Bd6 {[%clk 0:02:53]} 6. Bg5 {[%clk 0:02:58]}  c6 {[%clk 0:02:54]} 7. Qc2 {[%clk 0:02:57]}  O-O {[%clk 0:02:53]} 8. e3 {[%clk 0:02:55]}  Nbd7 {[%clk 0:02:35]} 9. Bd3 {[%clk 0:02:55]}  h6 {[%clk 0:02:34]} 10. Bh4 {[%clk 0:02:52]}  Re8 {[%clk 0:02:24]} 11. Nge2 {[%clk 0:02:51]}  b5 {[%clk 0:02:09]} 12. a4 {[%clk 0:02:41]}  b4 {[%clk 0:02:02]} 13. Nb1 {[%clk 0:02:42]}  c5 {[%clk 0:01:59]} 14. dxc5 {[%clk 0:02:38]}  Nxc5 {[%clk 0:01:59]} 15. Nd2 {[%clk 0:02:37]}  a5 {[%clk 0:01:50]} 16. Bb5 {[%clk 0:02:36]}  Bd7 {[%clk 0:01:41]} 17. Bxf6 {[%clk 0:02:28]}  Qxf6 {[%clk 0:01:39]} 18. Bxd7 {[%clk 0:02:29]}  Nxd7 {[%clk 0:01:39]} 19. Nf3 {[%clk 0:02:25]}  Ne5 {[%clk 0:01:26]} 20. Nxe5 {[%clk 0:02:19]}  Bxe5 {[%clk 0:01:27]} 21. Rb1 {[%clk 0:02:09]}  d4 {[%clk 0:01:24]} 22. exd4 {[%clk 0:02:07]}  Bxd4 {[%clk 0:01:21]} 23. O-O {[%clk 0:02:08]}  Rac8 {[%clk 0:01:13]} 24. Qd2 {[%clk 0:02:05]}  Be5 {[%clk 0:01:04]} 25. b3 {[%clk 0:02:05]}  Bc3 {[%clk 0:00:52]} 26. Qd3 {[%clk 0:01:58]}  Rcd8 {[%clk 0:00:48]} 27. Qb5 {[%clk 0:01:59]}  Re5 {[%clk 0:00:46]} 28. Qc4 {[%clk 0:01:56]}  Bd2 {[%clk 0:00:35]} 29. Rbd1 {[%clk 0:01:51]}  Red5 {[%clk 0:00:35]} 30. Ng3 {[%clk 0:01:43]}  Qf4 {[%clk 0:00:29]} 31. Ne4 {[%clk 0:01:35]}  Rd4 {[%clk 0:00:27]} 32. Rxd2 {[%clk 0:01:18]}  Rxc4 {[%clk 0:00:17]} 33. Rxd8+ {[%clk 0:01:17]}  Kh7 {[%clk 0:00:17]} 34. bxc4 {[%clk 0:01:16]}  Qxe4 {[%clk 0:00:18]} 35. c5 {[%clk 0:01:14]}  Qc6 {[%clk 0:00:18]} 36. Rc1 {[%clk 0:01:12]}  b3 {[%clk 0:00:19]} 37. Rb8 {[%clk 0:01:10]}  Qxa4 {[%clk 0:00:18]} 38. c6 {[%clk 0:01:09]}  b2 {[%clk 0:00:18]} 39. Rxb2 {[%clk 0:01:09]}  Qa3 {[%clk 0:00:17]} 40. c7 {[%clk 0:01:01]}  Qxb2 {[%clk 0:00:17]} 41. c8=Q {[%clk 0:01:01]}  a4 {[%clk 0:00:14]} 42. Qc2+ {[%clk 0:01:01]} 1-0


[Site "https://www.chess.com"]

[Event "Titled Tuesday Blitz June 20 Late 2023"]
[White "Rodriguez Polo, Mateo"]
[Black "cristianserban1"]
[WhiteFideId "24509396"]
[WhiteElo "2117"]
[BlackElo "2492"]
[Result "0-1"]
[Round "2"]
[TimeControl "180+2"]
[Date "2023.06.20"]
[WhiteClock "0:00:00"]
[BlackClock "0:01:01"]
[Board "153"]

1. d4 {[%clk 0:03:00]}  d5 {[%clk 0:02:59]} 2. c4 {[%clk 0:02:58]}  e6 {[%clk 0:03:00]} 3. Nc3 {[%clk 0:02:57]}  Nf6 {[%clk 0:03:00]} 4. cxd5 {[%clk 0:02:57]}  exd5 {[%clk 0:03:01]} 5. Bg5 {[%clk 0:02:57]}  Be7 {[%clk 0:03:01]} 6. e3 {[%clk 0:02:41]}  O-O {[%clk 0:03:00]} 7. Bd3 {[%clk 0:02:40]}  c6 {[%clk 0:03:00]} 8. Qc2 {[%clk 0:02:37]}  h6 {[%clk 0:03:00]} 9. Bh4 {[%clk 0:02:37]}  Nbd7 {[%clk 0:03:01]} 10. Nge2 {[%clk 0:02:37]}  Re8 {[%clk 0:03:01]} 11. O-O {[%clk 0:02:37]}  Ne4 {[%clk 0:03:01]} 12. Bxe7 {[%clk 0:02:35]}  Qxe7 {[%clk 0:03:02]} 13. Rab1 {[%clk 0:02:23]}  a5 {[%clk 0:02:59]} 14. a3 {[%clk 0:02:22]}  Ndf6 {[%clk 0:02:54]} 15. b4 {[%clk 0:02:22]}  axb4 {[%clk 0:02:55]} 16. axb4 {[%clk 0:02:23]}  b5 {[%clk 0:02:46]} 17. Bxe4 {[%clk 0:02:10]}  dxe4 {[%clk 0:02:46]} 18. Ng3 {[%clk 0:02:10]}  h5 {[%clk 0:01:58]} 19. Rfc1 {[%clk 0:02:08]}  h4 {[%clk 0:01:57]} 20. Nf1 {[%clk 0:02:08]}  Bf5 {[%clk 0:01:49]} 21. Ne2 {[%clk 0:01:58]}  Ra6 {[%clk 0:01:46]} 22. Qc5 {[%clk 0:01:49]}  Nd5 {[%clk 0:01:42]} 23. Qxe7 {[%clk 0:01:44]}  Rxe7 {[%clk 0:01:43]} 24. Nc3 {[%clk 0:01:40]}  Be6 {[%clk 0:01:38]} 25. Nxe4 {[%clk 0:01:32]}  Bf5 {[%clk 0:01:36]} 26. Nc5 {[%clk 0:01:27]}  Ra2 {[%clk 0:01:27]} 27. Rb3 {[%clk 0:00:45]}  Bc2 {[%clk 0:01:21]} 28. Rbb1 {[%clk 0:00:16]}  Bxb1 {[%clk 0:01:03]} 29. Rxb1 {[%clk 0:00:17]}  Nc3 {[%clk 0:01:04]} 30. Re1 {[%clk 0:00:12]}  h3 {[%clk 0:01:04]} 31. Ng3 {[%clk 0:00:11]}  hxg2 {[%clk 0:01:03]} 32. Kxg2 {[%clk 0:00:11]}  Rb2 {[%clk 0:01:01]} 33. Nf5 {[%clk 0:00:10]}  Ra7 {[%clk 0:01:01]} 34. Nd3 {[%clk 0:00:06]}  Rd2 {[%clk 0:01:00]} 35. Ne5 {[%clk 0:00:03]}  Raa2 {[%clk 0:01:01]} 36. Rf1 {[%clk 0:00:00]}  Ne4 {[%clk 0:01:01]} 0-1


[Site "https://www.chess.com"]